Workbook

Sheet Информация

Sheet Прайс-лист
E1: 17 июня 2025 г.
C3: введите в эти поля свои скидки от оптовой цены
C4: обычный товар | D4: 0
C5: "спецпредложение" - желтым цветом (скидка больше) | D5: 0
C6: "суперпредложение" - зеленым цветом (прямые поставки из Китая, скидка еще больше) | D6: 0
C7: на товар выделенный красным цветом - фиксированная цена, скидка не распространяется | F7: сумма заказа
C8: количество в упаковке указано для удобства, заказывать можно любое количество | F8: =SUM(G:G) -> 0
B9: код | C9: наименование | D9: оптовая цена со скидкой | E9: упаковка | F9: заказ, шт. | G9: сумма, р.
A10: Батарейки, электротовары, цифровая техника
A11: Акустические системы
B12: 102687 | C12: Акустическая система 2.0 "SmartBuy CUTE" (SBA-2570) 6Вт, USB, черно-серая | D12: =ROUND((1-Skidka1)*459.1,2) -> 459.1 | E12: 60 | G12: =F12*D12 -> 0 | H12: фото
B13: 89229 | C13: Акустическая система 2.0 "SmartBuy FEST" (SBA-2500) 4Вт, USB | D13: =ROUND((1-Skidka1)*484.2,2) -> 484.2 | E13: 40 | G13: 0 | H13: фото
B14: 96280 | C14: Акустическая система 2.0 "Smartbuy MINI" (SBA-2810) 4Вт, USB, серая | D14: =ROUND((1-Skidka1)*345.9,2) -> 345.9 | E14: 80 | G14: 0 | H14: фото
B15: 162343 | C15: Акустическая система 2.0 "Smartbuy ONE" (SBA-101) 6Вт, питание от USB, черная, дерево | D15: =ROUND((1-Skidka1)*755.7,2) -> 755.7 | E15: 20 | G15: 0 | H15: фото
B16: 162342 | C16: Акустическая система 2.0 "Smartbuy ONE" (SBA-102) 6Вт, питание от USB, коричневая, дерево | D16: =ROUND((1-Skidka1)*755.7,2) -> 755.7 | E16: 20 | G16: 0 | H16: фото
B17: 77211 | C17: Акустическая система 2.0 "SmartBuy ORCA BAND" (SBA-1000) 6Вт, USB | D17: =ROUND((1-Skidka1)*384.3,2) -> 384.3 | E17: 1 | G17: 0 | H17: фото
B18: 208318 | C18: Акустическая система 2.0 "SmartBuy W30" (SBA-4850) 6Вт, USB, динамики 76мм | D18: =ROUND((1-Skidka1)*602,2) -> 602 | E18: 20 | G18: 0 | H18: фото
B19: 190815 | C19: Акустическая система Bluetooth, 2.1, "Smartbuy ROCKET" (SBS-5100) 20 Вт, MP3, FM, микрофон | D19: =ROUND((1-Skidka1)*3714.4,2) -> 3714.4 | E19: 6 | G19: 0 | H19: фото
B20: 227053 | C20: Колонка портат. Bluetooth "Smartbuy GEM" (SBS-5500) 6 Вт, MP3, FM, микрофон | D20: =ROUND((1-Skidka1)*658.9,2) -> 658.9 | E20: 40 | G20: 0 | H20: фото
B21: 211283 | C21: Колонка портат. Bluetooth "Smartbuy HERO" (SBS-5290) 16 Вт, MP3, FM, красная | D21: =ROUND((1-Skidka1)*2228.7,2) -> 2228.7 | E21: 1 / 12 | G21: 0 | H21: фото
B22: 211282 | C22: Колонка портат. Bluetooth "Smartbuy HERO" (SBS-5300) 16 Вт, MP3, FM, камуфляж | D22: =ROUND((1-Skidka1)*2346.5,2) -> 2346.5 | E22: 1 / 12 | G22: 0 | H22: фото
B23: 227052 | C23: Колонка портат. Bluetooth "Smartbuy MARVEL" (SBS-5510) 6 Вт, MP3, FM, микрофон | D23: =ROUND((1-Skidka1)*845.4,2) -> 845.4 | E23: 40 | G23: 0 | H23: фото
B24: 143649 | C24: Колонка портат. Bluetooth "Smartbuy TUBER MKII" (SBS-4100) MP3-плеер, FM-радио, 6Вт, аккумулятор 1500мАч, черная | D24: =ROUND((1-Skidka1)*1083.6,2) -> 1083.6 | E24: 18 | G24: 0 | H24: фото
B25: 143643 | C25: Колонка портат. Bluetooth "Smartbuy TUBER MKII" (SBS-4200) MP3-плеер, FM-радио, 6Вт, аккумулятор 1500мАч, черно-желтая | D25: =ROUND((1-Skidka1)*1083.6,2) -> 1083.6 | E25: 18 | G25: 0 | H25: фото
B26: 143647 | C26: Колонка портат. Bluetooth "Smartbuy TUBER MKII" (SBS-4400) черно-синяя, MP3-плеер, FM-радио, 6Вт, аккумулятор 1500мАч | D26: =ROUND((1-Skidka1)*1083.6,2) -> 1083.6 | E26: 18 | G26: 0 | H26: фото
B27: 189508 | C27: Колонка портат. Bluetooth "Smartbuy YOGA 2" (SBS-5040) 5 Вт, MP3, FM, черная | D27: =ROUND((1-Skidka1)*463.1,2) -> 463.1 | E27: 1 | G27: 0 | H27: фото
B28: 233657 | C28: Колонка портат. напольная Bluetooth "Smartbuy ARISAKA 2" (SBS-5780) черная, MP3-плеер, FM-радио, AUX, микрофонный вход, 24Вт, аккумулятор | D28: =ROUND((1-Skidka1)*1916.8,2) -> 1916.8 | E28: 1 | G28: 0 | H28: фото
B29: 235522 | C29: Носки дет., р.10-12лет "Syltan" хлопок 80%, эластан 15%, полиамид 5% (3313) в ассорт. | D29: =ROUND((1-Skidka1)*44.8,2) -> 44.8 | E29: 10 | G29: 0 | H29: фото
B30: 235510 | C30: Носки жен, р.36-41 "Elises" короткие, хлопок 90%, полиамид 7% (BS2801) в ассорт. | D30: =ROUND((1-Skidka1)*42,2) -> 42 | E30: 10 | G30: 0 | H30: фото
B31: 235011 | C31: Радиоприемник Bluetooth (MK-066BT) аккумул., USB | D31: =ROUND((1-Skidka2)*588,2) -> 588 | E31: 1 | G31: 0 | H31: фото | L31: *
B32: 235012 | C32: Радиоприемник Bluetooth (MK-153BT) аккумул., USB, подсветка | D32: =ROUND((1-Skidka2)*758.4,2) -> 758.4 | E32: 1 | G32: 0 | H32: фото | L32: *
A33: Батарейки
B34: 161134 | C34: Аккумулятор R3 "Perfeo" 600 mAh, на блистере BL2 | D34: =ROUND((1-Skidka1)*63,2) -> 63 | E34: 2 / 60 | G34: 0 | H34: фото
B35: 167467 | C35: Аккумулятор R3 "Perfeo" 800 mAh, на блистере BL2 | D35: =ROUND((1-Skidka1)*79.28,2) -> 79.28 | E35: 2 / 60 | G35: 0 | H35: фото
B36: 232739 | C36: Аккумулятор R6 "Defender" 2100 mAh, на блистере BL2 (56502) | D36: =ROUND((1-Skidka1)*135.9,2) -> 135.9 | E36: 2 / 20 | G36: 0 | H36: фото
B37: 232740 | C37: Аккумулятор R6 "Defender" 2600 mAh, на блистере BL2 (56512) | D37: =ROUND((1-Skidka1)*201.3,2) -> 201.3 | E37: 2 / 20 | G37: 0 | H37: фото
B38: 161133 | C38: Аккумулятор R6 "Perfeo" 2700 mAh, на блистере BL2 | D38: =ROUND((1-Skidka1)*151.4,2) -> 151.4 | E38: 2 / 60 | G38: 0 | H38: фото
B39: 209148 | C39: Аккумулятор внешний Perfeo "Power Bank Mountains" 40000 mAh, 3A (PF_D0160) PD + QC 3.0, LED дисплей, белый | D39: =ROUND((1-Skidka1)*2568.6,2) -> 2568.6 | E39: 1 | G39: 0 | H39: фото
B40: 209149 | C40: Аккумулятор внешний Perfeo "Power Bank Mountains" 50000 mAh, 3A (PF_B4887) PD + QC 3.0, LED дисплей, черный | D40: =ROUND((1-Skidka1)*3169.7,2) -> 3169.7 | E40: 1 | G40: 0 | H40: фото
B41: 175517 | C41: Батарейка 1216 "Smartbuy", BL1 | D41: =ROUND((1-Skidka1)*16.45,2) -> 16.45 | E41: 12 / 720 | G41: 0 | H41: фото
B42: 232022 | C42: Батарейка 1220 "Opticell", BL1 | D42: =ROUND((1-Skidka1)*221.2,2) -> 221.2 | E42: 20 | G42: 0 | H42: фото
B43: 175518 | C43: Батарейка 1220 "Smartbuy", BL1 | D43: =ROUND((1-Skidka1)*18.09,2) -> 18.09 | E43: 12 / 72 | G43: 0 | H43: фото
B44: 170458 | C44: Батарейка 1225 "Smartbuy", BL1 | D44: =ROUND((1-Skidka1)*17.76,2) -> 17.76 | E44: 12 / 720 | G44: 0 | H44: фото
B45: 184920 | C45: Батарейка 1616 "Kodak", BL1 | D45: =ROUND((1-Skidka1)*53.85,2) -> 53.85 | E45: 60 | G45: 0 | H45: фото
B46: 172290 | C46: Батарейка 1620 "Kodak", BL1 | D46: =ROUND((1-Skidka1)*57.05,2) -> 57.05 | E46: 60 / 240 | G46: 0 | H46: фото
B47: 173086 | C47: Батарейка 1620 "Smartbuy", BL1 | D47: =ROUND((1-Skidka1)*18.59,2) -> 18.59 | E47: 12 / 720 | G47: 0 | H47: фото
B48: 222505 | C48: Батарейка 1632 "Smartbuy", BL1 | D48: =ROUND((1-Skidka1)*18.09,2) -> 18.09 | E48: 12 / 720 | G48: 0 | H48: фото
B49: 199264 | C49: Батарейка 2016 "Eleven", BL1 (301758) | D49: =ROUND((1-Skidka1)*26.2,2) -> 26.2 | E49: 12 / 720 | G49: 0 | H49: фото
B50: 184569 | C50: Батарейка 2016 "GP", BL5 | D50: =ROUND((1-Skidka1)*49.25,2) -> 49.25 | E50: 5 / 100 | G50: 0 | H50: фото
B51: 160301 | C51: Батарейка 2016 "Kodak", BL5 | D51: =ROUND((1-Skidka1)*33.69,2) -> 33.69 | E51: 5 / 60 / 360 | G51: 0 | H51: фото
B52: 229681 | C52: Батарейка 2016 "Minamoto", BL5 | D52: =ROUND((1-Skidka1)*14.56,2) -> 14.56 | E52: 5 / 100 | G52: 0 | H52: фото
B53: 227061 | C53: Батарейка 2016 "Mirex", BL1 | D53: =ROUND((1-Skidka1)*20.65,2) -> 20.65 | E53: 60 / 360 | G53: 0 | H53: фото
B54: 235110 | C54: Батарейка 2016 "Opticell Specialty" (полный аналог Duracell), BL2 | D54: =ROUND((1-Skidka1)*138,2) -> 138 | E54: 2 / 20 / 200 | G54: 0 | H54: фото
B55: 95091 | C55: Батарейка 2016 "Renata", BL1 | D55: =ROUND((1-Skidka1)*50.85,2) -> 50.85 | E55: 10 | G55: 0 | H55: фото
B56: 193054 | C56: Батарейка 2016 "Smartbuy", BL1 | D56: =ROUND((1-Skidka1)*15.9,2) -> 15.9 | E56: 12 / 720 | G56: 0 | H56: фото
B57: 233661 | C57: Батарейка 2025 "Duracell", BL2 | D57: =ROUND((1-Skidka1)*148.9,2) -> 148.9 | E57: 2 / 20 / 200 | G57: 0 | H57: фото
B58: 199265 | C58: Батарейка 2025 "Eleven", BL1 (301759) | D58: =ROUND((1-Skidka1)*26.85,2) -> 26.85 | E58: 12 / 720 | G58: 0 | H58: фото
B59: 169395 | C59: Батарейка 2025 "Energizer", BL1 | D59: =ROUND((1-Skidka1)*73.24,2) -> 73.24 | E59: 10 | G59: 0 | H59: фото
B60: 230594 | C60: Батарейка 2025 "GP", BL20 | D60: =ROUND((1-Skidka1)*29.49,2) -> 29.49 | E60: 20 / 600 | G60: 0 | H60: фото
B61: 206024 | C61: Батарейка 2025 "GP", BL5 | D61: =ROUND((1-Skidka1)*49.25,2) -> 49.25 | E61: 5 / 100 | G61: 0 | H61: фото
B62: 160302 | C62: Батарейка 2025 "Kodak", BL5 | D62: =ROUND((1-Skidka1)*33.69,2) -> 33.69 | E62: 5 / 60 / 360 | G62: 0 | H62: фото
B63: 186369 | C63: Батарейка 2025 "Maxell", BL5 | D63: =ROUND((1-Skidka1)*37.72,2) -> 37.72 | E63: 5 / 100 | G63: 0 | H63: фото
B64: 227060 | C64: Батарейка 2025 "Mirex", BL1 | D64: =ROUND((1-Skidka1)*19.71,2) -> 19.71 | E64: 60 / 360 | G64: 0 | H64: фото
B65: 235111 | C65: Батарейка 2025 "Opticell Specialty" (полный аналог Duracell), BL2 | D65: =ROUND((1-Skidka1)*138,2) -> 138 | E65: 2 / 20 / 200 | G65: 0 | H65: фото
B66: 161135 | C66: Батарейка 2025 "Perfeo", BL5 | D66: =ROUND((1-Skidka1)*11.61,2) -> 11.61 | E66: 5 / 100 | G66: 0 | H66: фото
B67: 95383 | C67: Батарейка 2025 "Renata", BL1 | D67: =ROUND((1-Skidka1)*58.38,2) -> 58.38 | E67: 10 | G67: 0 | H67: фото
B68: 225420 | C68: Батарейка 2025 "Rexant", BL5 | D68: =ROUND((1-Skidka1)*11.28,2) -> 11.28 | E68: 5 / 100 / 1800 | G68: 0 | H68: фото
B69: 215620 | C69: Батарейка 2025 "Smartbuy", BL1 | D69: =ROUND((1-Skidka1)*16.99,2) -> 16.99 | E69: 12 / 720 | G69: 0 | H69: фото
B70: 200929 | C70: Батарейка 2025 "Toshiba", BL5 | D70: =ROUND((1-Skidka1)*43.51,2) -> 43.51 | E70: 5 / 100 | G70: 0 | H70: фото
B71: 234551 | C71: Батарейка 2032 "Duracell", BL5 | D71: =ROUND((1-Skidka1)*122.7,2) -> 122.7 | E71: 5 / 20 / 200 | G71: 0 | H71: фото
B72: 194512 | C72: Батарейка 2032 "Eleven", BL1 (301760) | D72: =ROUND((1-Skidka1)*26.85,2) -> 26.85 | E72: 12 / 720 | G72: 0 | H72: фото
B73: 222017 | C73: Батарейка 2032 "GP", BL5 | D73: =ROUND((1-Skidka1)*48.8,2) -> 48.8 | E73: 5 / 100 | G73: 0 | H73: фото
B74: 224299 | C74: Батарейка 2032 "Kodak", BL2 | D74: =ROUND((1-Skidka1)*49.84,2) -> 49.84 | E74: 2 / 30 / 240 | G74: 0 | H74: фото
B75: 160303 | C75: Батарейка 2032 "Kodak", BL5 | D75: =ROUND((1-Skidka1)*34.58,2) -> 34.58 | E75: 5 / 60 / 360 | G75: 0 | H75: фото
B76: 186370 | C76: Батарейка 2032 "Maxell", BL5 | D76: =ROUND((1-Skidka1)*38.99,2) -> 38.99 | E76: 5 / 100 | G76: =F76*D76 -> 0 | H76: фото
B77: 227059 | C77: Батарейка 2032 "Mirex", BL1 | D77: =ROUND((1-Skidka1)*15.28,2) -> 15.28 | E77: 60 / 360 | G77: 0 | H77: фото
B78: 233231 | C78: Батарейка 2032 "Opticell Specialty" (полный аналог Duracell), BL5 | D78: =ROUND((1-Skidka1)*101.5,2) -> 101.5 | E78: 5 / 50 | G78: 0 | H78: фото
B79: 95384 | C79: Батарейка 2032 "Renata", BL1 | D79: =ROUND((1-Skidka1)*50.85,2) -> 50.85 | E79: 10 / 300 | G79: 0 | H79: фото
B80: 233230 | C80: Батарейка 2032 "Samsung Pleomax", BL2 | D80: =ROUND((1-Skidka1)*24.88,2) -> 24.88 | E80: 2 / 60 / 240 | G80: 0 | H80: фото
B81: 118715 | C81: Батарейка 2032 "Smartbuy", BL5 | D81: =ROUND((1-Skidka1)*13.16,2) -> 13.16 | E81: 5 / 100 / 4000 | G81: 0 | H81: фото
B82: 197981 | C82: Батарейка 2032 "Toshiba", BL5 | D82: =ROUND((1-Skidka1)*39.62,2) -> 39.62 | E82: 5 / 100 | G82: 0 | H82: фото
B83: 171633 | C83: Батарейка 2430 "Perfeo", BL5 | D83: =ROUND((1-Skidka1)*22.05,2) -> 22.05 | E83: 5 / 100 | G83: 0 | H83: фото
B84: 152391 | C84: Батарейка 2430 "Renata", BL1 | D84: =ROUND((1-Skidka1)*127.7,2) -> 127.7 | E84: 10 | G84: 0 | H84: фото
B85: 175521 | C85: Батарейка 2430 "Smartbuy", BL5 | D85: =ROUND((1-Skidka1)*24.46,2) -> 24.46 | E85: 5 / 100 / 2000 | G85: 0 | H85: фото
B86: 233690 | C86: Батарейка 2450 "Maxell", BL5 | D86: =ROUND((1-Skidka1)*109.7,2) -> 109.7 | E86: 5 / 50 | G86: 0 | H86: фото
B87: 233232 | C87: Батарейка 2450 "Космос", BL1 | D87: =ROUND((1-Skidka1)*47.71,2) -> 47.71 | E87: 12 / 72 | G87: 0 | H87: фото
B88: 122264 | C88: Батарейка 3R12 (квадратная) "Smartbuy" | D88: =ROUND((1-Skidka1)*80.06,2) -> 80.06 | E88: 12 / 144 | G88: 0 | H88: фото
B89: 194516 | C89: Батарейка 6F22 "Eleven", без блистера (301743) | D89: =ROUND((1-Skidka1)*43.19,2) -> 43.19 | E89: 10 / 400 | G89: 0 | H89: фото
B90: 41874 | C90: Батарейка 6F22 "Kodak. Heavy DUTY" на блистере BL1 | D90: =ROUND((1-Skidka1)*62.21,2) -> 62.21 | E90: 10 / 50 | G90: 0 | H90: фото
B91: 113267 | C91: Батарейка 6F22 "SmartBuy", без блистера | D91: =ROUND((1-Skidka1)*32.9,2) -> 32.9 | E91: 10 / 400 | G91: 0 | H91: фото
B92: 235328 | C92: Батарейка 6F22 "Varta Superlife" на блистере BL1 | D92: =ROUND((1-Skidka1)*112.5,2) -> 112.5 | E92: 10 | G92: 0 | H92: фото
A93: новинка | B93: 235516 | C93: Батарейка 6F22 "Космос", без блистера | D93: =ROUND((1-Skidka1)*39.68,2) -> 39.68 | E93: 10 | G93: 0 | H93: фото
B94: 220560 | C94: Батарейка 6LR61 9V "Eleven" алкалиновая, BL1(301752) | D94: =ROUND((1-Skidka1)*135.9,2) -> 135.9 | E94: 12 / 240 | G94: 0 | H94: фото
B95: 235329 | C95: Батарейка 6LR61 9V "Energizer MAX" алкалиновая, BL1 | D95: =ROUND((1-Skidka1)*141.3,2) -> 141.3 | E95: 12 | G95: 0 | H95: фото
B96: 207112 | C96: Батарейка 6LR61 9V "GP Ultra", алкалиновая, BL1 | D96: =ROUND((1-Skidka1)*179.95,2) -> 179.95 | E96: 10 | G96: 0 | H96: фото
B97: 140450 | C97: Батарейка 6LR61 9V "Kodak MAX" алкалиновая | D97: =ROUND((1-Skidka1)*158.9,2) -> 158.9 | E97: 10 / 200 / 6000 | G97: 0 | H97: фото
B98: 235316 | C98: Батарейка 6LR61 9V "Mirex", алкалиновая, BL1 | D98: =ROUND((1-Skidka1)*68.61,2) -> 68.61 | E98: 12 | G98: 0 | H98: фото
B99: 235317 | C99: Батарейка 6LR61 9V "Mirex", алкалиновая, в т/у пленке | D99: =ROUND((1-Skidka1)*70.66,2) -> 70.66 | E99: 20 | G99: 0 | H99: фото
B100: 235100 | C100: Батарейка 6LR61 9V "Opticell Basic" (полный аналог Duracell), алкалиновая, BL1 | D100: =ROUND((1-Skidka1)*290,2) -> 290 | E100: 10 | G100: 0 | H100: фото
B101: 221213 | C101: Батарейка 6LR61 9V "Philips Power" алкалиновая, BL1 | D101: =ROUND((1-Skidka1)*244.2,2) -> 244.2 | E101: 12 / 24 | G101: 0 | H101: фото
B102: 202742 | C102: Батарейка 6LR61 9V "Smartbuy", алкалиновая, BL1 | D102: =ROUND((1-Skidka1)*102.7,2) -> 102.7 | E102: 12 / 240 | G102: 0 | H102: фото
B103: 220353 | C103: Батарейка A23 "Kodak", 12V, на блистере BL1 | D103: =ROUND((1-Skidka1)*51.15,2) -> 51.15 | E103: 60 / 240 | G103: 0 | H103: фото
B104: 122236 | C104: Батарейка A23 "Smartbuy", 12V | D104: =ROUND((1-Skidka1)*20.4,2) -> 20.4 | E104: 5 / 100 | G104: 0 | H104: фото
B105: 223075 | C105: Батарейка A23/MN21 "Duracell", 12V, на блистере BL2 | D105: =ROUND((1-Skidka1)*119.7,2) -> 119.7 | E105: 2 / 20 | G105: 0 | H105: фото
B106: 184560 | C106: Батарейка A23/MN23 "GP", 12V, на блистере BL5 | D106: =ROUND((1-Skidka1)*52.72,2) -> 52.72 | E106: 5 / 100 | G106: 0 | H106: фото
B107: 220354 | C107: Батарейка A27 "Kodak", 12V, на блистере BL1 | D107: =ROUND((1-Skidka1)*47.1,2) -> 47.1 | E107: 60 / 240 | G107: 0 | H107: фото
B108: 220356 | C108: Батарейка A27 "Minamoto", 12V, на блистере BL5 | D108: =ROUND((1-Skidka1)*34.63,2) -> 34.63 | E108: 5 / 100 | G108: 0 | H108: фото
B109: 122237 | C109: Батарейка A27 "Smartbuy", 12V | D109: =ROUND((1-Skidka1)*20.4,2) -> 20.4 | E109: 5 / 100 | G109: 0 | H109: фото
B110: 170785 | C110: Батарейка AG 0 "Kodak" (379), BL10 | D110: =ROUND((1-Skidka1)*16.42,2) -> 16.42 | E110: 10 / 100 | G110: 0 | H110: фото
B111: 170786 | C111: Батарейка AG 1 "Kodak" (364), BL10 | D111: =ROUND((1-Skidka1)*6.18,2) -> 6.18 | E111: 10 / 100 | G111: 0 | H111: фото
B112: 184924 | C112: Батарейка AG 1 "Perfeo" (364, LR621) | D112: =ROUND((1-Skidka1)*2.12,2) -> 2.12 | E112: 10 / 200 | G112: 0 | H112: фото
B113: 122241 | C113: Батарейка AG 1 "Smartbuy" (SBBB-AG1-10B), BL10 | D113: =ROUND((1-Skidka1)*4.01,2) -> 4.01 | E113: 10 / 100 | G113: 0 | H113: фото
B114: 233454 | C114: Батарейка AG 3 "Samsung. Pleomax" (LR41), BL10 | D114: =ROUND((1-Skidka1)*4.19,2) -> 4.19 | E114: 10 / 100 | G114: 0 | H114: фото
B115: 127701 | C115: Батарейка AG 3 "Smartbuy" (LR41), BL10 | D115: =ROUND((1-Skidka1)*3.02,2) -> 3.02 | E115: 10 / 100 | G115: 0 | H115: фото
B116: 234735 | C116: Батарейка AG 3 "Космос" (LR41), BL10 | D116: =ROUND((1-Skidka1)*6.36,2) -> 6.36 | E116: 10 / 100 | G116: 0 | H116: фото
B117: 184916 | C117: Батарейка AG 4 "GP" (LR626), BL10 | D117: =ROUND((1-Skidka1)*15.55,2) -> 15.55 | E117: 10 / 250 | G117: 0 | H117: фото
B118: 185721 | C118: Батарейка AG 4 "Minamoto" (LR626), BL10 | D118: =ROUND((1-Skidka1)*4.72,2) -> 4.72 | E118: 10 / 200 | G118: 0 | H118: фото
B119: 227055 | C119: Батарейка AG 4 "Mirex" (LR626), BL6 | D119: =ROUND((1-Skidka1)*5.14,2) -> 5.14 | E119: 6 / 216 | G119: 0 | H119: фото
B120: 225423 | C120: Батарейка AG 4 "Rexant" (377), BL10 | D120: =ROUND((1-Skidka1)*3.84,2) -> 3.84 | E120: 10 / 100 | G120: 0 | H120: фото
B121: 217668 | C121: Батарейка AG 4 "Samsung Pleomax" (LR626, 377) | D121: =ROUND((1-Skidka1)*5.4,2) -> 5.4 | E121: 100 / 1000 | G121: 0 | H121: фото
B122: 127703 | C122: Батарейка AG 4 "Smartbuy" (SBBB-AG4-10B), BL10 | D122: =ROUND((1-Skidka1)*3.81,2) -> 3.81 | E122: 10 / 100 / 2000 | G122: 0 | H122: фото
B123: 170793 | C123: Батарейка AG 5 "Kodak" (393), BL10 | D123: =ROUND((1-Skidka1)*18.76,2) -> 18.76 | E123: 10 / 100 | G123: 0 | H123: фото
B124: 122246 | C124: Батарейка AG 5 "Smartbuy" (SBBB-AG5-10B), BL10 | D124: =ROUND((1-Skidka1)*7.36,2) -> 7.36 | E124: 10 / 100 / 2000 | G124: 0 | H124: фото
B125: 122250 | C125: Батарейка AG 9 "Smartbuy" (SBBB-AG6-10B), BL10 | D125: =ROUND((1-Skidka1)*6.28,2) -> 6.28 | E125: 10 / 200 / 2000 | G125: 0 | H125: фото
B126: 170787 | C126: Батарейка AG 10 "Kodak" (389), BL10 | D126: =ROUND((1-Skidka1)*10.04,2) -> 10.04 | E126: 10 / 100 | G126: 0 | H126: фото
B127: 227057 | C127: Батарейка AG 10 "Mirex" (LR1130), BL6 | D127: =ROUND((1-Skidka1)*4.81,2) -> 4.81 | E127: 6 / 216 | G127: 0 | H127: фото
B128: 217666 | C128: Батарейка AG 10 "Samsung Pleomax" (LR1130, 389) | D128: =ROUND((1-Skidka1)*6.59,2) -> 6.59 | E128: 10 / 100 | G128: 0 | H128: фото
B129: 122242 | C129: Батарейка AG 11 "Smartbuy" (SBBB-AG11-10B), BL10 | D129: =ROUND((1-Skidka1)*6.4,2) -> 6.4 | E129: 10 / 200 | G129: 0 | H129: фото
B130: 122243 | C130: Батарейка AG 12 "Smartbuy" (SBBB-AG12-10B), BL10 | D130: =ROUND((1-Skidka1)*6.76,2) -> 6.76 | E130: 10 / 200 | G130: 0 | H130: фото
B131: 194515 | C131: Батарейка AG 13 "Eleven" (LR44), BL10 (301757) | D131: =ROUND((1-Skidka1)*7.98,2) -> 7.98 | E131: 10 / 200 | G131: 0 | H131: фото
B132: 170790 | C132: Батарейка AG 13 "Kodak" (LR44), BL10 | D132: =ROUND((1-Skidka1)*9.15,2) -> 9.15 | E132: 10 / 100 | G132: 0 | H132: фото
B133: 186371 | C133: Батарейка AG 13 "Maxell" (LR44), BL10 | D133: =ROUND((1-Skidka1)*19.18,2) -> 19.18 | E133: 10 / 200 | G133: 0 | H133: фото
B134: 235112 | C134: Батарейка AG 13 "Opticell Specialty" (полный аналог Duracell), (LR44), BL2 | D134: =ROUND((1-Skidka1)*58.8,2) -> 58.8 | E134: 2 / 40 | G134: 0 | H134: фото
B135: 217667 | C135: Батарейка AG 13 "Samsung Pleomax" (LR1154, 357) | D135: =ROUND((1-Skidka1)*6.59,2) -> 6.59 | E135: 10 / 100 | G135: 0 | H135: фото
B136: 234320 | C136: Батарейка CR123A "Energizer" (для GPS - автомаяков и фото) BL1 | D136: =ROUND((1-Skidka1)*218.1,2) -> 218.1 | E136: 6 / 60 | G136: 0 | H136: фото
B137: 155205 | C137: Батарейка CR123A "Smartbuy" (для GPS - автомаяков и фото) BL1 | D137: =ROUND((1-Skidka1)*125,2) -> 125 | E137: 12 / 144 | G137: 0 | H137: фото
B138: 234321 | C138: Батарейка CR123A "Космос" (для GPS - автомаяков и фото) BL1 | D138: =ROUND((1-Skidka1)*181.8,2) -> 181.8 | E138: 12 / 144 | G138: 0 | H138: фото
B139: 155206 | C139: Батарейка CR2 "Smartbuy", BL1 | D139: =ROUND((1-Skidka1)*131,2) -> 131 | E139: 12 / 144 | G139: 0 | H139: фото
B140: 220317 | C140: Батарейка LR1 "Camelion", 1.5V, на блистере BL2 | D140: =ROUND((1-Skidka1)*48.38,2) -> 48.38 | E140: 2 / 12 | G140: =F140*D140 -> 0 | H140: фото
B141: 207114 | C141: Батарейка LR1 "GP", 910A, 1.5V, на блистере BL2 | D141: =ROUND((1-Skidka1)*52.38,2) -> 52.38 | E141: 2 / 20 | G141: 0 | H141: фото
B142: 220318 | C142: Батарейка LR1 "Kodak Ultra", 1.5V, на блистере BL1 | D142: =ROUND((1-Skidka1)*60.14,2) -> 60.14 | E142: 12 / 288 | G142: 0 | H142: фото
B143: 6386 | C143: Батарейка LR14 "Duracell", алкалиновая, на блистере BL2 | D143: =ROUND((1-Skidka1)*158.9,2) -> 158.9 | E143: 2 / 20 / 60 | G143: 0 | H143: фото
B144: 199590 | C144: Батарейка LR14 "Energizer MAX" алкалиновая, на блистере BL2 | D144: =ROUND((1-Skidka1)*142.15,2) -> 142.15 | E144: 2 / 12 | G144: 0 | H144: фото
B145: 195004 | C145: Батарейка LR14 "GP Super", алкалиновая, на блистере BL2 | D145: =ROUND((1-Skidka1)*122.2,2) -> 122.2 | E145: 2 / 20 | G145: 0 | H145: фото
B146: 166844 | C146: Батарейка LR14 "Kodak MAX", алкалиновая, на блистере BL2 | D146: =ROUND((1-Skidka1)*105.7,2) -> 105.7 | E146: 2 / 20 / 200 | G146: 0 | H146: фото
B147: 235109 | C147: Батарейка LR14 "Opticell Basic" (полный аналог Duracell), алкалиновая, на блистере BL2 | D147: =ROUND((1-Skidka1)*160.1,2) -> 160.1 | E147: 2 / 20 | G147: 0 | H147: фото
B148: 225417 | C148: Батарейка LR14 "Rexant", алкалиновая, на блистере BL2 | D148: =ROUND((1-Skidka1)*69.04,2) -> 69.04 | E148: 2 / 24 / 192 | G148: 0 | H148: фото
B149: 127695 | C149: Батарейка LR14 "Smartbuy", алкалиновая, на блистере BL2 | D149: =ROUND((1-Skidka1)*69.74,2) -> 69.74 | E149: 2 / 12 / 192 | G149: 0 | H149: фото
B150: 6385 | C150: Батарейка LR20 "Duracell" алкалиновая, на блистере BL2 | D150: =ROUND((1-Skidka1)*273.4,2) -> 273.4 | E150: 2 / 20 | G150: 0 | H150: фото
B151: 194513 | C151: Батарейка LR20 "Eleven", алкалиновая, на блистере BL2 (301751) | D151: =ROUND((1-Skidka1)*133.9,2) -> 133.9 | E151: 2 / 12 / 96 | G151: 0 | H151: фото
B152: 164336 | C152: Батарейка LR20 "Energizer Industrial" алкалиновая | D152: =ROUND((1-Skidka1)*144.5,2) -> 144.5 | E152: 12 | G152: 0 | H152: фото
B153: 47124 | C153: Батарейка LR20 "Kodak MAX", алкалиновая, на блистере BL2 | D153: =ROUND((1-Skidka1)*156.5,2) -> 156.5 | E153: 2 / 20 / 100 | G153: 0 | H153: фото
B154: 227063 | C154: Батарейка LR20 "Mirex" щелочная, на блистере BL2 | D154: =ROUND((1-Skidka1)*72.64,2) -> 72.64 | E154: 2 / 12 / 96 | G154: 0 | H154: фото
B155: 220316 | C155: Батарейка LR20 "Opticell Basic" (полный аналог Duracell), алкалиновая, BL2 | D155: 210 | E155: 2 / 20 | G155: 0 | H155: фото | L155: !
B156: 221230 | C156: Батарейка LR20 "Philips Power", алкалиновая, на блистере BL2 | D156: =ROUND((1-Skidka1)*216.7,2) -> 216.7 | E156: 2 / 24 / 48 | G156: 0 | H156: фото
B157: 102636 | C157: Батарейка LR20 "Smartbuy", алкалиновая, на блистере BL2 | D157: =ROUND((1-Skidka1)*101.4,2) -> 101.4 | E157: 2 / 12 / 96 | G157: 0 | H157: фото
B158: 225977 | C158: Батарейка LR20 "Tesla Batteries Black", алкалиновая, на блистере BL2 | D158: =ROUND((1-Skidka1)*208,2) -> 208 | E158: 2 / 24 / 144 | G158: 0 | H158: фото
B159: 235113 | C159: Батарейка LR20 "Varta Energy", алкалиновая, на блистере BL2 | D159: =ROUND((1-Skidka1)*142.1,2) -> 142.1 | E159: 2 / 20 / 100 | G159: 0 | H159: фото
B160: 232759 | C160: Батарейка LR3 "Defender PowerPulse", алкалиновая, на блистере BL10 (56024) | D160: =ROUND((1-Skidka1)*12.42,2) -> 12.42 | E160: 10 / 200 | G160: 0 | H160: фото
B161: 232760 | C161: Батарейка LR3 "Defender PowerPulse", алкалиновая, на блистере BL4 (56023) | D161: =ROUND((1-Skidka1)*13.45,2) -> 13.45 | E161: 4 / 40 / 240 | G161: 0 | H161: фото
B162: 232761 | C162: Батарейка LR3 "Defender UlrtaPulse", алкалиновая, на блистере BL4 (56025) | D162: =ROUND((1-Skidka1)*20.18,2) -> 20.18 | E162: 4 / 40 / 240 | G162: 0 | H162: фото
B163: 234441 | C163: Батарейка LR3 "Duracell Basic (оригинал, китайская этикетка)", алкалиновая, в коробке по 40шт. | D163: =ROUND((1-Skidka1)*52.05,2) -> 52.05 | E163: 40 | G163: 0 | H163: фото
B164: 234439 | C164: Батарейка LR3 "Duracell Basic (оригинал, китайская этикетка)", алкалиновая, на блистере BL2 | D164: =ROUND((1-Skidka1)*65.1,2) -> 65.1 | E164: 2 / 24 | G164: 0 | H164: фото
B165: 234440 | C165: Батарейка LR3 "Duracell Basic (оригинал, китайская этикетка)", алкалиновая, на блистере BL4 | D165: =ROUND((1-Skidka1)*63.52,2) -> 63.52 | E165: 4 / 48 | G165: 0 | H165: фото
B166: 16935 | C166: Батарейка LR3 "Duracell Basic", алкалиновая, на блистере BL4 | D166: 81 | E166: 4 / 40 | G166: 0 | H166: фото | L166: !
B167: 190788 | C167: Батарейка LR3 "Duracell Simply", алкалиновая, на отрывном листе BL2х10 | D167: =ROUND((1-Skidka1)*84.36,2) -> 84.36 | E167: 20 / 240 | G167: 0 | H167: фото
B168: 170386 | C168: Батарейка LR3 "Duracell Simply", алкалиновая, на отрывном листе BL4x4 | D168: =ROUND((1-Skidka1)*80.11,2) -> 80.11 | E168: 4 / 16 / 240 | G168: 0 | H168: фото
B169: 205970 | C169: Батарейка LR3 "Eleven SUPER", алкалиновая, на блистере BL2 (301753) | D169: =ROUND((1-Skidka1)*30.42,2) -> 30.42 | E169: 2 / 24 | G169: 0 | H169: фото
B170: 203284 | C170: Батарейка LR3 "Eleven SUPER", алкалиновая, на блистере BL4 (301754) | D170: =ROUND((1-Skidka1)*23.26,2) -> 23.26 | E170: 4 / 48 | G170: 0 | H170: фото
B171: 194510 | C171: Батарейка LR3 "Eleven" Bulk, алкалиновая, в коробке по 40шт. (301746) | D171: =ROUND((1-Skidka1)*19.19,2) -> 19.19 | E171: 40 / 960 | G171: 0 | H171: фото
B172: 232641 | C172: Батарейка LR3 "Eleven", алкалиновая, в коробке по 20шт. (376039) | D172: =ROUND((1-Skidka1)*20.92,2) -> 20.92 | E172: 20 / 640 | G172: 0 | H172: фото
B173: 221026 | C173: Батарейка LR3 "Eleven", алкалиновая, в отрывной ленте по 5шт. | D173: =ROUND((1-Skidka1)*20.84,2) -> 20.84 | E173: 5 / 60 / 600 | G173: 0 | H173: фото
B174: 199262 | C174: Батарейка LR3 "Eleven", алкалиновая, на блистере BL10 (324425) | D174: =ROUND((1-Skidka1)*20.64,2) -> 20.64 | E174: 10 / 240 | G174: 0 | H174: фото
B175: 196287 | C175: Батарейка LR3 "Eleven", алкалиновая, на блистере BL2 (301744) | D175: =ROUND((1-Skidka1)*24.09,2) -> 24.09 | E175: 2 / 24 / 240 | G175: 0 | H175: фото
B176: 195913 | C176: Батарейка LR3 "Eleven", алкалиновая, на блистере BL4 (301745) | D176: =ROUND((1-Skidka1)*21.52,2) -> 21.52 | E176: 4 / 48 | G176: 0 | H176: фото
B177: 211044 | C177: Батарейка LR3 "Energizer MAX", алкалиновая, на блистере BL10 | D177: =ROUND((1-Skidka1)*43.59,2) -> 43.59 | E177: 10 / 120 | G177: 0 | H177: фото
B178: 22549 | C178: Батарейка LR3 "Energizer MAX", алкалиновая, на блистере BL4 | D178: =ROUND((1-Skidka1)*38.76,2) -> 38.76 | E178: 4 / 48 | G178: 0 | H178: фото
B179: 215215 | C179: Батарейка LR3 "Energy Pro", алкалиновая, без блистера, по 4/16шт. в спайке | D179: =ROUND((1-Skidka1)*16.19,2) -> 16.19 | E179: 16 / 160 | G179: 0 | H179: фото
B180: 215214 | C180: Батарейка LR3 "Energy Pro", алкалиновая, в коробке по 10шт. | D180: =ROUND((1-Skidka1)*17.24,2) -> 17.24 | E180: 10 / 600 | G180: 0 | H180: фото
B181: 214939 | C181: Батарейка LR3 "GP Super", алкалиновая, в отрывной ленте по 5шт. | D181: =ROUND((1-Skidka1)*40.36,2) -> 40.36 | E181: 5 / 60 | G181: 0 | H181: фото
B182: 165987 | C182: Батарейка LR3 "GP Super", алкалиновая, на блистере BL2 | D182: =ROUND((1-Skidka1)*36.49,2) -> 36.49 | E182: 2 / 20 | G182: 0 | H182: фото
B183: 36210 | C183: Батарейка LR3 "Kodak MAX", алкалиновая, Bulk (без упаковки, по 500шт. в коробе) | D183: =ROUND((1-Skidka1)*22.46,2) -> 22.46 | E183: 500 / 35000 | G183: 0 | H183: фото
B184: 57325 | C184: Батарейка LR3 "Kodak MAX", алкалиновая, в отрывной ленте по 10шт. | D184: =ROUND((1-Skidka1)*33.02,2) -> 33.02 | E184: 10 / 100 | G184: 0 | H184: фото
B185: 104068 | C185: Батарейка LR3 "Kodak MAX", алкалиновая, в пластиковом боксе по 24 шт. | D185: =ROUND((1-Skidka1)*32.89,2) -> 32.89 | E185: 24 / 480 | G185: 0 | H185: фото
B186: 36209 | C186: Батарейка LR3 "Kodak MAX", алкалиновая, на блистере BL2 | D186: =ROUND((1-Skidka1)*38.26,2) -> 38.26 | E186: 20 / 100 | G186: 0 | H186: фото
B187: 168842 | C187: Батарейка LR3 "Kodak MAX", алкалиновая, на блистере BL4 | D187: =ROUND((1-Skidka1)*37.98,2) -> 37.98 | E187: 4 / 40 / 200 | G187: 0 | H187: фото
B188: 201804 | C188: Батарейка LR3 "Kodak XTRALIFE", алкалиновая, в коробке по 20шт. | D188: =ROUND((1-Skidka1)*23,2) -> 23 | E188: 20 / 360 | G188: 0 | H188: фото
B189: 169399 | C189: Батарейка LR3 "Kodak XTRALIFE", алкалиновая, на блистере BL4 | D189: =ROUND((1-Skidka1)*26.21,2) -> 26.21 | E189: 4 / 40 | G189: 0 | H189: фото
B190: 104066 | C190: Батарейка LR3 "Kodak XTRALIFE", алкалиновая, на блистере BL8+2 | D190: =ROUND((1-Skidka1)*28.8,2) -> 28.8 | E190: 10 / 120 / 480 | G190: 0 | H190: фото
B191: 166842 | C191: Батарейка LR3 "Kodak XTRALIFE", алкалиновая, на отрывном листе BL2х6 | D191: =ROUND((1-Skidka1)*28.94,2) -> 28.94 | E191: 12 / 144 | G191: 0 | H191: фото
B192: 135337 | C192: Батарейка LR3 "Kodak XTRALIFE", алкалиновая, по 4шт. в спайке | D192: =ROUND((1-Skidka1)*22.7,2) -> 22.7 | E192: 4 / 60 | G192: 0 | H192: фото
B193: 193949 | C193: Батарейка LR3 "Minamoto", алкалиновая, на блистере BL2 | D193: =ROUND((1-Skidka1)*21.72,2) -> 21.72 | E193: 2 / 24 | G193: 0 | H193: фото
B194: 185724 | C194: Батарейка LR3 "Minamoto", алкалиновая, по 2шт. в спайке | D194: =ROUND((1-Skidka1)*15.85,2) -> 15.85 | E194: 2 / 48 | G194: 0 | H194: фото
B195: 227065 | C195: Батарейка LR3 "Mirex", щелочная, без блистера, в спайке по 4шт. | D195: =ROUND((1-Skidka1)*10.91,2) -> 10.91 | E195: 4 / 24 | G195: 0 | H195: фото
B196: 221223 | C196: Батарейка LR3 "Opticell Basic" (полный аналог Duracell), алкалиновая, на блистере BL12 | D196: 59 | E196: 12 / 144 | G196: 0 | H196: фото | L196: !
B197: 218405 | C197: Батарейка LR3 "Opticell Basic" (полный аналог Duracell), алкалиновая, на блистере BL4 | D197: =ROUND((1-Skidka1)*67,2) -> 67 | E197: 4 / 48 | G197: 0 | H197: фото
B198: 221224 | C198: Батарейка LR3 "Opticell Basic" (полный аналог Duracell), алкалиновая, на блистере BL6 | D198: =ROUND((1-Skidka1)*64.5,2) -> 64.5 | E198: 6 / 60 | G198: 0 | H198: фото
B199: 221225 | C199: Батарейка LR3 "Opticell Basic" (полный аналог Duracell), алкалиновая, на блистере BL8 | D199: =ROUND((1-Skidka1)*65,2) -> 65 | E199: 8 / 80 | G199: 0 | H199: фото
B200: 235105 | C200: Батарейка LR3 "Opticell Professional" (полный аналог Duracell), алкалиновая, на блистере BL12 | D200: =ROUND((1-Skidka1)*73.2,2) -> 73.2 | E200: 12 / 144 | G200: 0 | H200: фото
B201: 235106 | C201: Батарейка LR3 "Opticell Professional" (полный аналог Duracell), алкалиновая, на блистере BL2 | D201: =ROUND((1-Skidka1)*87.2,2) -> 87.2 | E201: 2 / 96 | G201: 0 | H201: фото
... 4299 more rows

Sheet Поступления
A1: ПОСЛЕДНИЕ ПОСТУПЛЕНИЯ ТОВАРА
A3: код | B3: наименование | C3: цена оптовая
A4: Батарейки, электротовары, цифровая техника
A5: 227059 | B5: Батарейка 2032 "Mirex", BL1 | C5: 15.28 | D5: фото
A6: 227059 | B6: Батарейка 2032 "Mirex", BL1 | C6: 15.28 | D6: фото
A7: 41874 | B7: Батарейка 6F22 "Kodak. Heavy DUTY" на блистере BL1 | C7: 62.21 | D7: фото
A8: 235516 | B8: Батарейка 6F22 "Космос", без блистера | C8: 39.68 | D8: фото
A9: 140450 | B9: Батарейка 6LR61 9V "Kodak MAX" алкалиновая | C9: 158.9 | D9: фото
A10: 170793 | B10: Батарейка AG 5 "Kodak" (393), BL10 | C10: 18.76 | D10: фото
A11: 57325 | B11: Батарейка LR3 "Kodak MAX", алкалиновая, в отрывной ленте по 10шт. | C11: 33.02 | D11: фото
A12: 104068 | B12: Батарейка LR3 "Kodak MAX", алкалиновая, в пластиковом боксе по 24 шт. | C12: 32.89 | D12: фото
A13: 168842 | B13: Батарейка LR3 "Kodak MAX", алкалиновая, на блистере BL4 | C13: 37.98 | D13: фото
A14: 185724 | B14: Батарейка LR3 "Minamoto", алкалиновая, по 2шт. в спайке | C14: 15.85 | D14: фото
A15: 194508 | B15: Батарейка LR6 "Eleven" Bulk, алкалиновая, в коробке по 40шт. (301749) | C15: 22.22 | D15: фото
A16: 227067 | B16: Батарейка LR6 "Mirex", алкалиновая, без блистера | C16: 12.96 | D16: фото
A17: 194509 | B17: Батарейка R6 "Eleven" без блистера, по 4шт. в спайке (301740) | C17: 11.9 | D17: фото
A18: 4093 | B18: Батарейка R6 "Kodak Super Heavy Duty", без блистера, по 4шт. в спайке | C18: 10.58 | D18: фото
A19: 227066 | B19: Батарейка R6 "Mirex" без блистера | C19: 6.49 | D19: фото
A20: 227066 | B20: Батарейка R6 "Mirex" без блистера | C20: 6.49 | D20: фото
A21: 235517 | B21: Зарядное устройство сетевое Borofone (BAS13A, 6941991104862) 3.0А, QC3.0, PD20W, Type-C, белое | C21: 179.4 | D21: фото
A22: 235518 | B22: Зарядное устройство сетевое HOCO "Ocean" (CS11A, 6942007603546) 2.1А, 1 USB, черное | C22: 98.34 | D22: фото
A23: 223381 | B23: Кабель Type-C - Type-C, 1 м, PD60W, "Gratified", силиконовый, 2.4А (X88, 6931474783363) "HOCO", черный | C23: 63.74 | D23: фото
A24: 224030 | B24: Клавиатура +мышь беспроводные Defender "Columbia C-775RU" черные (45775) | C24: 699 | D24: фото
A25: 222824 | B25: Клавиатура +мышь беспроводные Defender "Skyling 895" белые (45895) | C25: 1108.5 | D25: фото
A26: 217945 | B26: Клавиатура Defender "Daily" (HB-162, 45162) USB, черная | C26: 241.1 | D26: фото
A27: 178345 | B27: Клавиатура Smartbuy "ONE 115" (SBK-115-K) USB, черная | C27: 347.4 | D27: фото
A28: 189508 | B28: Колонка портат. Bluetooth "Smartbuy YOGA 2" (SBS-5040) 5 Вт, MP3, FM, черная | C28: 463.1 | D28: фото
A29: 233657 | B29: Колонка портат. напольная Bluetooth "Smartbuy ARISAKA 2" (SBS-5780) черная, MP3-плеер, FM-радио, AUX, микрофонный вход, 24Вт, аккумулятор | C29: 1916.8 | D29: фото
A30: 220924 | B30: Мышь Smartbuy 288 (SBM-288-P) бесшумная, с подсветкой розовая | C30: 295.9 | D30: фото
A31: 146725 | B31: Мышь беспроводная SmartBuy 352AG-K "ONE", черная | C31: 317.8 | D31: фото
A32: 146723 | B32: Мышь беспроводная SmartBuy 352AG-RK "ONE", красно-черная | C32: 317.8 | D32: фото
A33: 173075 | B33: Мышь беспроводная Smartbuy 508AG синяя (SBM-508AG-B) | C33: 427 | D33: фото
A34: 186642 | B34: Пленка для ламинирования "OfficeSpace" А4, 216*303мм, 100мкм, 100шт. (LF7089) | C34: 684.5 | D34: фото
A35: 234573 | B35: Флеш-накопитель 8Гб "Netac U197 mini" черный/красный | C35: 185.1 | D35: фото
A36: 235519 | B36: Флеш-накопитель 8Гб "Netac U505" черный/серебро | C36: 206.9 | D36: фото
A37: 217929 | B37: Флеш-накопитель 8Гб "Smartbuy Easy" Green (SB008GBEG) | C37: 213.9 | D37: фото
A38: 156103 | B38: Флеш-накопитель 8Гб "Smartbuy Glossy " Black (SB8GBGS-K) | C38: 217 | D38: фото
A39: 157723 | B39: Флеш-накопитель 8Гб "Smartbuy Glossy " Blue (SB8GBGS-B) | C39: 217 | D39: фото
A40: 156105 | B40: Флеш-накопитель 8Гб "Smartbuy Glossy " Orange (SB8GBGS-Or) | C40: 217 | D40: фото
A41: 157726 | B41: Флеш-накопитель 8Гб "Smartbuy Quartz" Black (SB8GBQZ-K) | C41: 217 | D41: фото
A42: 163946 | B42: Флеш-накопитель 8Гб "Smartbuy Quartz" Violet (SB8GBQZ-V) | C42: 217 | D42: фото
A43: 218765 | B43: Флеш-накопитель 8Гб "Smartbuy Scout" Blue (SB008GB2SCB) | C43: 217 | D43: фото
A44: 208278 | B44: Флеш-накопитель 8Гб "Smartbuy Twist" Blue | C44: 217 | D44: фото
A45: 219924 | B45: Флеш-накопитель 8Гб "Smartbuy V-Cut" Blue | C45: 217 | D45: фото
A46: 225370 | B46: Флеш-накопитель 16Гб "Smartbuy CLUE" Red (SB16GBCLU-R) | C46: 266.6 | D46: фото
A47: 225369 | B47: Флеш-накопитель 16Гб "Smartbuy CLUE" White (SB16GBCLU-W) | C47: 266.6 | D47: фото
A48: 96245 | B48: Флеш-накопитель 16Гб "Smartbuy Dock" Blue (SB16GBDK-B) | C48: 266.6 | D48: фото
A49: 217937 | B49: Флеш-накопитель 16Гб "Smartbuy Easy" Black (SB016GBEK) | C49: 262.3 | D49: фото
A50: 217933 | B50: Флеш-накопитель 16Гб "Smartbuy Easy" White (SB016GBEW) | C50: 262.3 | D50: фото
A51: 81933 | B51: Флеш-накопитель 16Гб "Smartbuy Glossy " Black (SB16GBGS-K) | C51: 266.6 | D51: фото
A52: 81934 | B52: Флеш-накопитель 16Гб "Smartbuy Glossy " Blue (SB16GBGS-B) | C52: 266.6 | D52: фото
A53: 81935 | B53: Флеш-накопитель 16Гб "Smartbuy Glossy " Green (SB16GBGS-G) | C53: 266.6 | D53: фото
A54: 90998 | B54: Флеш-накопитель 16Гб "Smartbuy Glossy " Orange (SB16GBGS-Or) | C54: 266.6 | D54: фото
A55: 108760 | B55: Флеш-накопитель 16Гб "Smartbuy Quartz" Black (SB16GBQZ-K) | C55: 266.6 | D55: фото
A56: 118322 | B56: Флеш-накопитель 16Гб "Smartbuy Quartz" Violet (SB16GBQZ-V) | C56: 266.6 | D56: фото
A57: 216327 | B57: Флеш-накопитель 16Гб "Smartbuy Scout" Black | C57: 254.2 | D57: фото
A58: 205949 | B58: Флеш-накопитель 16Гб "Smartbuy Scout" Blue | C58: 266.6 | D58: фото
A59: 208281 | B59: Флеш-накопитель 16Гб "Smartbuy Scout" White | C59: 266.6 | D59: фото
A60: 219925 | B60: Флеш-накопитель 16Гб "Smartbuy Twist" Black | C60: 266.6 | D60: фото
A61: 205951 | B61: Флеш-накопитель 16Гб "Smartbuy Twist" Blue | C61: 266.6 | D61: фото
A62: 205952 | B62: Флеш-накопитель 16Гб "Smartbuy Twist" Pink | C62: 266.6 | D62: фото
A63: 79847 | B63: Флеш-накопитель 16Гб "Smartbuy V-Cut" Silver | C63: 266.6 | D63: фото
A64: 228047 | B64: Флеш-накопитель 32Гб "Netac U116 mini" белый | C64: 288.5 | D64: фото
A65: 229676 | B65: Флеш-накопитель 32Гб "Netac U185" белый, с LED-индикатором | C65: 272.2 | D65: фото
A66: 228048 | B66: Флеш-накопитель 32Гб "Netac U326" серебро | C66: 389 | D66: фото
A67: 228050 | B67: Флеш-накопитель 32Гб "Netac U352" серебро | C67: 310.3 | D67: фото
A68: 228051 | B68: Флеш-накопитель 32Гб "Netac U505" черный/серебро | C68: 283.1 | D68: фото
A69: 202751 | B69: Флеш-накопитель 32Гб "Smartbuy CLUE" Black (SB32GBCLU-K) | C69: 316.1 | D69: фото
A70: 202753 | B70: Флеш-накопитель 32Гб "Smartbuy CLUE" Burgundy (SB32GBCLU-BG) | C70: 316.1 | D70: фото
A71: 202754 | B71: Флеш-накопитель 32Гб "Smartbuy CLUE" Red (SB32GBCLU-R) | C71: 316.1 | D71: фото
A72: 202756 | B72: Флеш-накопитель 32Гб "Smartbuy CLUE" Yellow (SB32GBCLU-Y) | C72: 316.1 | D72: фото
A73: 205956 | B73: Флеш-накопитель 32Гб "Smartbuy Scout" Red | C73: 316.1 | D73: фото
A74: 205959 | B74: Флеш-накопитель 32Гб "Smartbuy Twist" Blue | C74: 309.9 | D74: фото
A75: 205961 | B75: Флеш-накопитель 32Гб "Smartbuy Twist" Yellow | C75: 309.9 | D75: фото
A76: 192623 | B76: Чистящие салфетки OfficeClean влажные, для мониторов, ароматизированные 100шт. в тубе, (325157) | C76: 150 | D76: фото
A77: Игрушки
A78: 221943 | B78: Puzzle 60 элементов "Важный транспорт №9" (П60-3871) | C78: 78.09 | D78: фото
A79: 234197 | B79: Puzzle 60 элементов "Веселое селфи диких кошек" (Ф60-4526) | C79: 78.09 | D79: фото
A80: 215324 | B80: Puzzle 60 элементов "Военная техника №2" (П60-6977) | C80: 78.09 | D80: фото
A81: 200473 | B81: Puzzle 60 элементов "Мир динозавров №36" (П60-6310) | C81: 78.09 | D81: фото
A82: 200476 | B82: Puzzle 60 элементов "Принцесы №2" (П60-6309) | C82: 78.09 | D82: фото
A83: 218965 | B83: Puzzle 104 элемента "Забавные щенки №2" (П104-9934) | C83: 80.82 | D83: фото
A84: 205612 | B84: Puzzle 104 элемента "Магические феи" (П104-3195) | C84: 80.82 | D84: фото
A85: 205614 | B85: Puzzle 104 элемента "Принцесса и единорог №2" (П104-3197) | C85: 80.82 | D85: фото
A86: 231276 | B86: Puzzle 104 элемента "Принцессы на единорогах" (Ф104-6475) | C86: 80.82 | D86: фото
A87: 221945 | B87: Puzzle 104 элемента "Сестры-принцессы на лугу" (Ф104-3875) | C87: 80.82 | D87: фото
A88: 234621 | B88: Puzzle 160 элементов "Авто в красивом городе" (Ф160-4539) | C88: 93.9 | D88: фото
A89: 234622 | B89: Puzzle 160 элементов "Милый рыжий котенок" (Ф160-4542) | C89: 93.9 | D89: фото
A90: 234623 | B90: Puzzle 160 элементов "Мощный трансформер" (Ф160-4543) | C90: 93.9 | D90: фото
A91: 231261 | B91: Puzzle 160 элементов "Три бульдога" (Ф160-3882) | C91: 93.9 | D91: фото
A92: 234625 | B92: Puzzle 160 элементов "Эпоха динозавров" (Ф160-4545) | C92: 93.9 | D92: фото
A93: 210560 | B93: Puzzle 500 элементов "Вечер у озера в Гальштате" (Ф500-0746) | C93: 166.4 | D93: фото
A94: 177541 | B94: Puzzle 500 элементов "Италия. Озеро среди Доломитовых Альп" (ГИП500-0613) | C94: 166.4 | D94: фото
A95: 203409 | B95: Puzzle 500 элементов "Космос №9" (Ф500-7126) | C95: 166.4 | D95: фото
A96: 229383 | B96: Puzzle 500 элементов "Кот в хризантемах" (П500-0501) | C96: 166.4 | D96: фото
A97: 203407 | B97: Puzzle 500 элементов "С. Горячева. Пионы" (РУКП500-7124) | C97: 166.4 | D97: фото
A98: 203406 | B98: Puzzle 500 элементов "Семья ежей" (П500-8333) | C98: 166.4 | D98: фото
A99: 229384 | B99: Puzzle 500 элементов "Щенок на прогулке" (П500-0504) | C99: 166.4 | D99: фото
A100: 175729 | B100: TOPpuzzle 500 элементов "Домик у пруда" (ХТП500-4228) | C100: 151 | D100: фото
A101: 183069 | B101: TOPpuzzle 500 элементов "Прибрежный домик" (ХТП500-6822) | C101: 151 | D101: фото
A102: 210557 | B102: TOPpuzzle 500 элементов "Терасса у горного озера" (П500-0739) | C102: 151 | D102: фото
A103: 215376 | B103: TOPpuzzle 500 элементов "Яркие попугаи" (ХТП500-6975) | C103: 151 | D103: фото
A104: 178987 | B104: TOPpuzzle 1000 элементов "Два спящих котенка" (ГИТП1000-2142) | C104: 231.8 | D104: фото
A105: 234950 | B105: Автовоз инерц. "Военный" + 2 вертолета (2842486) в блистере 28*7*11см | C105: 204.6 | D105: фото
A106: 235862 | B106: Автовоз инерц. + внедорожники 2шт. + квадроциклы 2шт. (2392811) в блистере 44*11*18см | C106: 583.2 | D106: фото
A107: 235863 | B107: Автовоз инерц. + внедорожники 2шт. + квадроциклы 2шт. (2869024) в блистере 44*11*18см | C107: 609.8 | D107: фото
A108: 201797 | B108: Автомат - трещотка 37см, в пакете (2010138) | C108: 89.78 | D108: фото
A109: 208033 | B109: Автомат - трещотка 43см, в пакете (2313612) | C109: 103.8 | D109: фото
A110: 206679 | B110: Автомат на батар. (2120263) свет, звук, в пакете 57*11,5см | C110: 320 | D110: фото
A111: 217273 | B111: Автомат пневм. с лазерным прицелом и глушителем, 70см (Y25249035) в комплекте 12 патронов и 6 гильз, в коробке 59,5*25см | C111: 704 | D111: фото
A112: 210628 | B112: Барабан 16см (И-5217) в пакете | C112: 156.2 | D112: фото
A113: 232445 | B113: Бластер "BeBoy" с мягкими пулями (IT109768) в комплекте 24 патрона, в коробке 45*6,5*29см | C113: 1261.6 | D113: фото
A114: 231735 | B114: Винтовка с мягкими пулями и прицелом, 90см (Y25249002) в комплекте 20 патронов, 6 гильз, в коробке | C114: 1615.2 | D114: фото
A115: 235858 | B115: Внедорожник инерц. "Военный" в пакете 20*11*10см (2468544) | C115: 131 | D115: фото
A116: 230223 | B116: Внедорожник р\у "Police" 1:16 (2823468) аккумул., в коробке 39*20*16см | C116: 1364.1 | D116: фото
A117: 235637 | B117: Вод. оружие "Бластер" 18см, 250мл. (И-8854) цвет в ассорт., в пакете | C117: 99.21 | D117: фото
A118: 235639 | B118: Вод. оружие "Бластер" 20см, 250мл. (И-8850) цвет в ассорт., в пакете | C118: 115.7 | D118: фото
A119: 235641 | B119: Вод. оружие "Бластер" 24см, 250мл. (И-8846) цвет в ассорт., в пакете | C119: 93.88 | D119: фото
A120: 235124 | B120: Вод. оружие "Бластер" 37см., 220мл. (ИК-5612) | C120: 191.3 | D120: фото
A121: 235635 | B121: Вод. оружие "Пистолет" 10см, 100мл. (ИК-0553) цвет в ассорт., в пакете | C121: 96.99 | D121: фото
A122: 235636 | B122: Вод. оружие "Пистолет" 15см, 40мл. (ИК-1025) цвет в ассорт., в пакете | C122: 163.1 | D122: фото
A123: 235638 | B123: Вод. оружие "Пистолет" 18см, 100мл. (ИК-0443) цвет в ассорт., в пакете | C123: 62.39 | D123: фото
A124: 235646 | B124: Вод. оружие "Пистолет" 19см (ИК-2368) цвет в ассорт., в пакете | C124: 168.7 | D124: фото
A125: 235647 | B125: Вод. оружие "Пистолет" 21см (ИК-2367) цвет в ассорт., в пакете | C125: 133.5 | D125: фото
A126: 235648 | B126: Вод. оружие "Пистолет" 22,5см, 230мл. (Y9578245) цвет в ассорт., в пакете | C126: 207.6 | D126: фото
A127: 235649 | B127: Вод. оружие "Пистолет" 24см (ИК-2366) цвет в ассорт., в пакете | C127: 127.3 | D127: фото
A128: 235640 | B128: Вод. оружие "Пистолет" 24см, 200мл. (ИК-1035) цвет в ассорт., в пакете | C128: 80.51 | D128: фото
A129: 235642 | B129: Вод. оружие "Пистолет" 25см, 120мл. (ИК-1050) цвет в ассорт., в пакете | C129: 177.7 | D129: фото
A130: 235643 | B130: Вод. оружие "Пистолет" 25см, 280мл. (ИК-2451) цвет в ассорт., в пакете | C130: 158.6 | D130: фото
A131: 235127 | B131: Вод. оружие "Пистолет" 27см, 280мл. (Y9578241) цвет в ассорт., в пакете | C131: 152.9 | D131: фото
A132: 235644 | B132: Вод. оружие "Пистолет" 29см, 200мл. (ИК-1045) цвет в ассорт., в пакете | C132: 90.57 | D132: фото
A133: 235645 | B133: Вод. оружие "Пистолет" 29см, 250мл. (ИК-0539) цвет в ассорт., в пакете | C133: 101 | D133: фото
A134: 235650 | B134: Вод. оружие "Пистолет" 40см (ИК-2370) цвет в ассорт., в пакете | C134: 308.5 | D134: фото
A135: 222078 | B135: Вод. оружие на аккумул. "Пистолет" 23см, коричневый (Y26624003) заряжается от USB, в коробке | C135: 695.1 | D135: фото
A136: 92110 | B136: Головоломка "Кубик" 7см (GN-4880/RKJ-4189) в пакете | C136: 61.6 | D136: фото
A137: 230616 | B137: Доска для рисования черно-белая (И-5275) в пакете 27*29см | C137: 193 | D137: фото
A138: 230614 | B138: Доска для рисования черно-белая (И-5277) в пакете 26*19см | C138: 174.2 | D138: фото
A139: 234916 | B139: Железная дорога на батарейках (2381901) в коробке 35*4*25см | C139: 361.1 | D139: фото
A140: 230230 | B140: Игр. набор "Гонки" со светом и звуком, шлем - трансформер (IT109793) 2 машины в компл., в коробке 48*12*34см | C140: 2018.7 | D140: фото
A141: 225547 | B141: Игр. набор "Доктор" в коробке 39*28см (2384769) световые эффекты | C141: 414.3 | D141: фото
A142: 236045 | B142: Игр. набор "Кухня. Grand Burgeuer" в собр. виде - 71*31*78см (57938) с аксесс., в пакете, Полесье | C142: 1800 | D142: фото
A143: 235864 | B143: Игр. набор "Супермаркет": касса, сканер, весы, продукты, на батар. (2965348) свет, звук, в коробке 19,4*12,5*6,7см | C143: 234.7 | D143: фото
A144: 235865 | B144: Игр. набор "Супермаркет": касса, сканер, весы, продукты, на батар. (2965349) свет, звук, в коробке 19,4*12,5*6,7см | C144: 220.5 | D144: фото
A145: 210568 | B145: Игра "Большой улов": удочка и 6 рыбок (M1500-4) в блистере 20*50см | C145: 239.2 | D145: фото
A146: 236044 | B146: Игровой набор "Парикмахерская Злата" в собр. виде: фен 105*49*38см, мойка 68,5*42*33см, табурет h 29,2см (52759) в пакете, Полесье | C146: 1890.7 | D146: фото
A147: 235868 | B147: Игровой центр "Мини-автомат с игрушками" 32,5*19*17см (2836093) свет, звук, в коробке 30*19*22,5см | C147: 1663.9 | D147: фото
A148: 235651 | B148: Игрушка для выдувания мыльных пузырей, 2цв. в ассорт. (Y15737013) на батар., свет, в пакете | C148: 150.1 | D148: фото
A149: 204146 | B149: Коляска металлическая для куклы "Прогулка с мамой" 65,5*28*29см (9302WA-3) 4-колесная, "трость", в пакете | C149: 470.5 | D149: фото
A150: 230622 | B150: Конструктор "Шестеренки" 31 элем. в блистере (2921983) | C150: 220.5 | D150: фото
A151: 234923 | B151: Кукла 35см (2992387) в коробке 36*8,5*20,5см | C151: 1028.6 | D151: фото
A152: 234925 | B152: Кукла 35см (2992392) в коробке 36*8,5*20,5см | C152: 1028.6 | D152: фото
A153: 234928 | B153: Кукла с аксесс., руки и ноги на шарнирах (2337408) в коробке 22*9*16см | C153: 603.6 | D153: фото
A154: 233485 | B154: Машина на батар. "Спорт" 15,5см (2031001) 4цв. в ассорт., свет, звук, в коробке | C154: 184.4 | D154: фото
A155: 218941 | B155: Машина спортивная "Turbo V-MAX" 40см (И-9783) черная | C155: 332.8 | D155: фото
A156: 232534 | B156: Мяч баскетбольный, размер 7, 520гр (IT108923) | C156: 366.7 | D156: фото
A157: 236097 | B157: Мяч волейбольный, размер 5, 280гр (RKJ-4712) красно-желто-белый | C157: 245.6 | D157: фото
A158: 236096 | B158: Мяч волейбольный, размер 5, 280гр (RKJ-4712) красно-желто-зеленый | C158: 245.6 | D158: фото
A159: 236098 | B159: Мяч волейбольный, размер 5, 280гр (RKJ-4712) красно-желто-синий | C159: 245.6 | D159: фото
A160: 221801 | B160: Мяч футбольный, размер 5, 270гр (IT108932) в ассорт. | C160: 304.3 | D160: фото
A161: 201217 | B161: Мяч футбольный, размер 5, 310гр (IT107707) в ассорт. | C161: 439.8 | D161: фото
A162: 236043 | B162: Мяч футбольный, размер 5, 310гр (RKJ-6247) белый с рисунком | C162: 250 | D162: фото
A163: 236039 | B163: Мяч футбольный, размер 5, 310гр (RKJ-6247) желтый с рисунком | C163: 250 | D163: фото
A164: 236042 | B164: Мяч футбольный, размер 5, 310гр (RKJ-6247) зеленый с рисунком | C164: 250 | D164: фото
A165: 236041 | B165: Мяч футбольный, размер 5, 310гр (RKJ-6247) красный с рисунком | C165: 250 | D165: фото
A166: 236040 | B166: Мяч футбольный, размер 5, 310гр (RKJ-6247) оранжевый с рисунком | C166: 250 | D166: фото
A167: 221798 | B167: Мяч футбольный, размер 5, 350гр (IT107709) в ассорт. | C167: 502.2 | D167: фото
A168: 201912 | B168: Набор воланов 3шт. перьевые (RKJ-141) в тубе | C168: 164 | D168: фото
A169: 150023 | B169: Набор воланов 6шт. белые (RKJ-607) в тубе | C169: 87.2 | D169: фото
A170: 208718 | B170: Набор для бокса "Военный": груша 45см + перчатки (Y22838023) в сетке | C170: 823.7 | D170: фото
A171: 235145 | B171: Набор для песка №110 "Лесная полянка" (НАБ-4793) Ведро 0,85л., лейка, лопатка 13см, грабли 13см | C171: 148.4 | D171: фото
A172: 235146 | B172: Набор для песка №111 "Принцессы" (НАБ-4794) Ведро 0,85л., лейка, лопатка 22см | C172: 143.9 | D172: фото
A173: 210583 | B173: Набор инструментов 12 предм. в пакете (2172720) | C173: 282.1 | D173: фото
A174: 223600 | B174: Набор машин метал. 6шт. "Военная техника" с аксесс. (2470096) в коробке 40,5*23,6см | C174: 626.4 | D174: фото
A175: 230596 | B175: Набор посуды "Чайный набор" в сетке 22*15*8см (2224762) | C175: 123 | D175: фото
A176: 232830 | B176: Пупс "Малыш" 33см, с аксесс. (2072470) пьет, писает, закрывает глазки, озвуч., в коробке | C176: 1391.8 | D176: фото
A177: 235866 | B177: Пылесос вертикальный на батар. 53,5см, с доп. насадками (2995135) звук, в коробке 29,5*7,5*15см | C177: 455.1 | D177: фото
A178: 235867 | B178: Пылесос вертикальный на батар. 57см, с доп. насадками (2995125) звук, в коробке 35,5*10*15,5см | C178: 647.8 | D178: фото
A179: 235860 | B179: Р/У на аккумул. 19*8*6см "Спорт" (2967343) 2цв. в ассорт., свет, в коробке | C179: 669.9 | D179: фото
A180: 235859 | B180: Р/У на аккумул. 19*8*6см "Спорт" (2967365) 2цв. в ассорт., свет, звук, пар, в коробке | C180: 828.6 | D180: фото
A181: 234945 | B181: Р/У на аккумул. 26см (2958856) 2цв. в ассорт., свет, в коробке 32*12,5*13см | C181: 648.9 | D181: фото
A182: 235861 | B182: Р/У на аккумул. 27*16*16см "Внедорожник. Полиция" (2788226) 2цв. в ассорт., свет, в коробке | C182: 1132.9 | D182: фото
A183: 218958 | B183: Робот-трансформер в коробке 52,5*12*41,5см (И-9521) в ассорт. | C183: 1718.4 | D183: фото
A184: 208024 | B184: Руль музыкальный "Мишка" (2173351) в пакете, работает от 3*LR6 | C184: 391.7 | D184: фото
A185: 153623 | B185: Самосвал "Добрыня" 20см (И-8047) | C185: 142.1 | D185: фото
A186: 220576 | B186: Самосвал карьерный, инерционный, 13см (И-9423) свет, звук, подвижные детали, в пакете | C186: 271.4 | D186: фото
A187: 217686 | B187: Слайм "Облачко" 37гр., цвет в ассорт., РОССИЯ | C187: 37.8 | D187: фото
A188: 230674 | B188: Слайм "Облачко" 200мл., пастельный, цвет в ассорт., РОССИЯ | C188: 119 | D188: фото
A189: 226023 | B189: Слайм "Пегас" 200гр., с блестками, цвет в ассорт., РОССИЯ | C189: 119 | D189: фото
A190: 222169 | B190: Слайм "Пегас" 340гр., перламутровый, цвет в ассорт., РОССИЯ | C190: 161 | D190: фото
A191: 217685 | B191: Слайм "Пегас. Зефирка" 50гр., цвет в ассорт., РОССИЯ | C191: 37.8 | D191: фото
A192: 222170 | B192: Слайм "Пегас. Зефирка" 500гр., 2-х цветный, в ассорт., РОССИЯ | C192: 245 | D192: фото
A193: 217673 | B193: Слайм "Прихлоп" 40гр., капсула, цвет в ассорт., РОССИЯ | C193: 35 | D193: фото
A194: 217674 | B194: Слайм "Прихлоп" 40гр., туба, цвет в ассорт., РОССИЯ | C194: 39.2 | D194: фото
A195: 217676 | B195: Слайм "Прихлоп" 130гр., перламутровый, цвет в ассорт., РОССИЯ | C195: 100.8 | D195: фото
A196: 217675 | B196: Слайм "Прихлоп" 130гр., с шариками, флуор., цвет в ассорт., РОССИЯ | C196: 100.8 | D196: фото
A197: 217681 | B197: Слайм "Прихлоп. Мальчик - пират" 50гр., с шариками, цвет в ассорт., РОССИЯ | C197: 36.4 | D197: фото
A198: 230617 | B198: Собака с поводком на батар., 17*15см, поводок 80см (2940865) ходит, лает, машет хвостиком, в переноске | C198: 660.3 | D198: фото
A199: 136850 | B199: Шарик воздушный "BASIR" 10", 25см "Металлик ассорти" (MC-3446) | C199: 2.6 | D199: фото
A200: 136850 | B200: Шарик воздушный "BASIR" 10", 25см "Металлик ассорти" (MC-3446) | C200: 2.6 | D200: фото
A201: 136851 | B201: Шарик воздушный "BASIR" 12", 30см "Металлик ассорти" (MC-3441) | C201: 3.08 | D201: фото
... 719 more rows
